Cogmind - Beta 13 @@@ ROGUE MODE // 2024.06.16 @ 02:02:23 Player: Tanner Result: Destroyed by Y-45 Defender with Beam Rifle Performance ------------- Evolutions (1) 500 Regions Visited (3) 600 Robots Destroyed (26) 130 Value Destroyed (575) 575 Prototype IDs (2) 40 Alien Tech Used (0) 0 Bonus (0) 0 TOTAL SCORE: 1845 Bonus ------- None Cogmind --------- Core Integrity 0/400 Matter 272/300 Energy 100/100 System Corruption 0% Temperature Cool (9) Movement Core (350) Ox6 Location -9/Materials Parts ------- > --- POWER (1) -------- (None) > --- PROPULSION (2) --- (None) > --- UTILITY (3) ------ Large Storage Unit Improved Targeting Computer > --- WEAPON (3) ------- (None) > --- INVENTORY (15) --- Improved Ion Engine Light Nuclear Core Aluminum Leg Heat Sink Large Storage Unit EMP Trap EMP Trap EMP Trap EMP Trap Peak State ------------ > --- POWER ------------ Improved Ion Engine > --- PROPULSION ------- Aluminum Leg Aluminum Leg > --- UTILITY ---------- Large Storage Unit Improved Targeting Computer > --- WEAPON ----------- Small Laser Particle Gun Rocket Launcher > --- INVENTORY -------- Improved Ion Engine Light Nuclear Core Aluminum Leg Aluminum Leg Heat Sink Large Storage Unit EMP Trap EMP Trap EMP Trap EMP Trap [Rating: 13] Favorites ----------- Power Light Ion Engine Engine Light Ion Engine Propulsion Wheel Leg Aluminum Leg Wheel Wheel Utility Large Storage Unit Device Improved Heat Sink Storage Large Storage Unit Processor Improved Targeting Computer Weapon Medium Laser Energy Gun Medium Laser Ballistic Gun Shotgun Launcher Rocket Launcher Build | -11 -10 -10 -9 ------- Run | Yrd Mat Min Mat Slots Evolved 2 | . . . 2 Power . | . . . . Propulsion . | . . . . Utility 1 | . . . 1 Weapon 1 | . . . 1 Parts Attached 25 | 6 5 . 14 Power 3 | 1 1 . 1 Engine 3 | 1 1 . 1 Core . | . . . . Reactor . | . . . . Propulsion 7 | 2 1 . 4 Treads . | . . . . Leg 3 | . . . 3 Wheel 4 | 2 1 . 1 Hover . | . . . . Flight . | . . . . Utility 5 | 1 2 . 2 Device 3 | 1 1 . 1 Storage 1 | . 1 . . Processor 1 | . . . 1 Hackware . | . . . . Protection . | . . . . Artifact . | . . . . Weapon 10 | 2 1 . 7 Energy Gun 7 | 2 1 . 4 Energy Cannon . | . . . . Ballistic Gun 2 | . . . 2 Ballistic Cannon . | . . . . Launcher 1 | . . . 1 Special Weapon . | . . . . Impact Weapon . | . . . . Slashing Weapon . | . . . . Piercing Weapon . | . . . . Special Melee Weapon . | . . . . Unidentified Prototypes . | . . . . Parts Lost 17 | . 3 . 14 Power 3 | . 1 . 2 Propulsion 6 | . 1 . 5 Utility 1 | . . . 1 Weapon 7 | . 1 . 6 Highest Loss Streak 6 | . 3 . 6 To Critical Strikes . | . . . . Average Slot Usage (%) 88 | . 94 100 83 Engine 11 | . 14 14 10 Leg 9 | . . . 15 Wheel 13 | . 25 28 5 Device 7 | . 14 14 3 Storage 11 | . 13 14 11 Processor 6 | . . . 10 Energy Gun 22 | . 26 28 19 Ballistic Gun 1 | . . . 2 Launcher 2 | . . . 4 Naked Turns . | . . . . Heaviest Build 35 | 8 28 28 35 Greatest Support 26 | 20 20 20 26 Greatest Overweight (x) 6 | . 1 1 6 Average Overweight (x) . | . . 1 1 Largest Inventory Capacity 15 | 5 15 15 15 Average Capacity 14 | 5 14 15 15 Most Carried 15 | 5 12 15 14 Average Carried 10 | 2 9 13 10 Final Capacity 15 | 5 15 15 15 Final Carried 15 | 4 11 15 9 Class Distribution -------------------- 62% | Mutant 23% | Gunner 12% | Scavenger-Gunner Dominant Class ---------------- Mutant | -10/Materials Mutant | -10/Mines Gunner | -9/Materials Resources | -11 -10 -10 -9 ----------- Run | Yrd Mat Min Mat Matter Collected 417 | 250 55 . 112 Remotely . | . . . . Salvage Created 837 | 45 459 . 333 Parts 57 | 2 29 . 26 Haulers Intercepted . | . . . . Recyclers Shooed 1 | . 1 . . Parts Field Recycled . | . . . . Retrieved Matter . | . . . . Parts Self-Destructed . | . . . . Prevented . | . . . . Kills | -11 -10 -10 -9 ------- Run | Yrd Mat Min Mat Combat Hostiles Destroyed 19 | 1 7 . 11 Guns 17 | 1 5 . 11 Classes Destroyed 7 | 1 4 . 2 Worker 2 | . 1 . 1 Builder 3 | . 3 . . Recycler 1 | . 1 . . Watcher 1 | . 1 . . Swarmer 7 | . . . 7 Grunt 10 | 1 7 . 2 Sentry 2 | . . . 2 Best Kill Streak 8 | 1 3 . 8 Combat Bots Only 7 | 1 2 . 7 Max Kills in Single Turn 1 | 1 1 . 1 Gunslinging . | . . . . Exploded . | . . . . Melee . | . . . . Uniques/NPCs Destroyed . | . . . . Combat | -11 -10 -10 -9 -------- Run | Yrd Mat Min Mat Hostile Shots Fired 196 | 6 54 . 136 Missed 41 | 2 14 . 25 Damage Taken 1952 | 44 529 . 1379 Core 627 | . 218 . 409 Absorbed by Shields . | . . . . Core Remaining (%) 56 | 100 . 12 . Volleys Fired 103 | 5 49 . 49 Largest 3 | 2 2 . 3 Hottest 130 | 100 100 . 130 Shots Fired 170 | 10 79 . 81 Gun 170 | 10 79 . 81 Cannon . | . . . . Launcher . | . . . . Special . | . . . . Kinetic 11 | . . . 11 Thermal 152 | 10 73 . 69 Explosive . | . . . . Electromagnetic 7 | . 6 . 1 Robot Hit Streak 12 | 4 9 . 12 Robot Miss Streak 5 | 2 5 . 4 Penetration Max . | . . . . Secondary Targets 3 | . 2 . 1 Max Gunslinging Chain 1 | . 1 . 1 Shots Hit Robots 105 | 6 54 . 45 Core Hits 41 | 2 20 . 19 Critical Kills . | . . . . Critical Parts Destroyed . | . . . . Critical Strikes 10 | 1 7 . 2 Burn 10 | 1 7 . 2 Melee Attacks . | . . . . Impact . | . . . . Slashing . | . . . . Piercing . | . . . . Sneak Attacks . | . . . . Combat Hostiles . | . . . . Follow-up Attacks . | . . . . Damage Inflicted 1515 | 89 747 . 679 Guns 1455 | 89 696 . 670 Cannons . | . . . . Explosions . | . . . . Melee . | . . . . Ramming 60 | . 51 . 9 Kinetic 108 | . . . 108 Thermal 1267 | 89 628 . 550 Explosive . | . . . . Electromagnetic 80 | . 68 . 12 Impact . | . . . . Slashing . | . . . . Piercing . | . . . . Highest Corruption 2 | . 2 2 . Average Corruption 1 | . 1 2 . Corruption Purged . | . . . . Corruption Blocked . | . . . . Effects 2 | . 1 1 . Data Loss (minor) 1 | . . 1 . Data Loss (major) 1 | . 1 . . Overload Shots . | . . . . Overflow Damage . | . . . . Projectiles . | . . . . Explosions . | . . . . Melee . | . . . . Knockbacks . | . . . . Impact . | . . . . Kinetic . | . . . . Secondary . | . . . . Self-Inflicted Damage 24 | . 24 . . Shots . | . . . . Rammed 6 | . 5 . 1 Targets Rammed 8 | . 5 . 3 Kicked 2 | . . . 2 Crushed . | . . . . Highest Temperature 541 | 219 79 . 541 Average Temperature 123 | 114 20 . 166 Received Heat Transfer 801 | 24 246 . 531 Effects 5 | 1 . . 4 Shutdowns 1 | . . . 1 Energy Bleed 3 | . . . 3 Interference 1 | 1 . . . Siege Activations . | . . . . Robots Corrupted . | . . . . Combat Hostiles . | . . . . Parts Fried . | . . . . Impact Corruptions . | . . . . Robots Melted 2 | . 2 . . Combat Hostiles 2 | . 2 . . Parts Melted 12 | 1 9 . 2 Heat Transferred 4152 | 333 2368 . 1451 Parts Sabotaged . | . . . . Parts Stolen . | . . . . Parts Stripped . | . . . . Power Chain Reactions . | . . . . Alert | -11 -10 -10 -9 ------- Run | Yrd Mat Min Mat Peak Influence 261 | 20 219 85 261 Initial 85 | . 13 85 33 Average 114 | 3 131 85 125 Maximum Alert Level 1 | . 1 . 1 Low Security (%) 80 | 100 84 100 72 Level 1 19 | . 15 . 28 Level 2 . | . . . . Level 3 . | . . . . Level 4 . | . . . . Level 5 . | . . . . High Security . | . . . . Max Security . | . . . . Squads Dispatched 2 | . 1 . 1 Investigation . | . . . . Extermination . | . . . . Reinforcement 2 | . 1 . 1 Assault . | . . . . Garrison . | . . . . Intercept . | . . . . Searches Triggered . | . . . . Construction Impeded . | . . . . Haulers Reinforced . | . . . . Active Scanning Responses . | . . . . Cargo Convoy Interrupts . | . . . . Stealth | -11 -10 -10 -9 --------- Run | Yrd Mat Min Mat Distress Signals 4 | . 2 . 2 Communications Jammed . | . . . . Distress Signals . | . . . . Times Spotted 30 | 1 9 . 20 Peak Tracking Total 8 | 1 4 . 8 Tactical Retreats 2 | . . . 2 Traps | -11 -10 -10 -9 ------- Run | Yrd Mat Min Mat Traps Triggered 1 | . 1 . . Indirectly . | . . . . Trap Hack Attempts . | . . . . Triggered . | . . . . Disarmed . | . . . . Reprogrammed . | . . . . Reused . | . . . . Traps Extracted . | . . . . Installed . | . . . . Triggered . | . . . . Most Traps Carried 4 | . . 4 4 Machines | -11 -10 -10 -9 ---------- Run | Yrd Mat Min Mat Machines Disabled 1 | . . . 1 Max in Single Turn 1 | . . . 1 Machines Repaired . | . . . . Machines Dismantled . | . . . . Machines Sabotaged . | . . . . Overloaded Fab Kills . | . . . . Hacking | -11 -10 -10 -9 --------- Run | Yrd Mat Min Mat Machines Accessed 5 | . 2 1 2 Terminals 5 | . 2 1 2 Fabricators . | . . . . Repair Stations . | . . . . Recycling Units . | . . . . Scanalyzers . | . . . . Garrison Access . | . . . . Total Hacks 13 | . 4 4 5 Successful 6 | . 3 1 2 Failed 7 | . 1 3 3 Catastrophic 1 | . . . 1 Database Lockouts . | . . . . Manual . | . . . . Terminals 13 | . 4 4 5 Fabricators . | . . . . Repair Stations . | . . . . Recycling Units . | . . . . Scanalyzers . | . . . . Garrison Access . | . . . . Terminal Hacks 6 | . 3 1 2 Record 1 | . 1 . . Robot Analysis 1 | . 1 . . Prototype ID Bank 1 | . . . 1 Level Access Points 1 | . 1 . . Alert Level 1 | . . . 1 Zone Layout 1 | . . 1 . Fabricator Hacks . | . . . . Repair Station Hacks . | . . . . Recycling Unit Hacks . | . . . . Scanalyzer . | . . . . Garrison Access Hacks . | . . . . Unauthorized Hacks . | . . . . Terminals . | . . . . Fabricators . | . . . . Repair Stations . | . . . . Recycling Units . | . . . . Scanalyzers . | . . . . Garrison Access . | . . . . Data Cores Recovered . | . . . . Used . | . . . . Hacking Detections 2 | . . 1 1 Full Trace Events . | . . . . Feedback Events . | . . . . Feedback Blocked . | . . . . Robot Schematics Acquired . | . . . . Robots Built . | . . . . Authchips . | . . . . Time . | . . . . Total Robot Build Rating . | . . . . Part Schematics Acquired . | . . . . Parts Built . | . . . . Authchips . | . . . . Time . | . . . . Total Part Build Rating . | . . . . Parts Repaired . | . . . . Time . | . . . . Parts Recycled . | . . . . Recycled Matter . | . . . . Retrieved Matter . | . . . . Retrieved Components . | . . . . Parts Scanalyzed . | . . . . Part Schematics Acquired . | . . . . Parts Damaged . | . . . . Bothacking | -11 -10 -10 -9 ------------ Run | Yrd Mat Min Mat Used RIF Installer . | . . . . Robots Hacked . | . . . . Non-combat . | . . . . Combat . | . . . . Robot Hacks Applied . | . . . . Relay Couplers Released . | . . . . Fabnet Peak Effective % . | . . . . Robots Rewired . | . . . . Allies Hacked . | . . . . Hacks Repelled . | . . . . Allies | -11 -10 -10 -9 -------- Run | Yrd Mat Min Mat Total Allies . | . . . . Largest Group . | . . . . Highest-Rated Group . | . . . . Highest-Rated Ally . | . . . . Total Orders . | . . . . Ally Attacks . | . . . . Total Damage . | . . . . Kills . | . . . . Allies Corrupted . | . . . . Allies Melted . | . . . . Intel | -11 -10 -10 -9 ------- Run | Yrd Mat Min Mat Robot Analysis Total 1 | . 1 . . Derelict Logs Recovered 1 | . . 1 . Drone Launches . | . . . . Drone Recoveries . | . . . . Exploration | -11 -10 -10 -9 ------------- Run | Yrd Mat Min Mat Turns Passed 1236 | 85 303 148 700 Spaces Moved 739 | 80 162 152 345 Core 32 | 31 . . 1 Treads . | . . . . Legs 206 | . . . 206 Wheels 501 | 49 162 152 138 Hover . | . . . . Flight . | . . . . Fastest Speed 50 | 50 80 95 95 Average Speed 120 | 68 92 95 156 Slowest Speed 350 | 80 95 95 350 Overloaded Moves . | . . . . Propulsion Burnouts . | . . . . Robots Hopped . | . . . . Cave-ins Triggered . | . . . . Exploration Rate (%) 20 | 7 28 29 17 Regions Visited 3 Branch Regions 1 Pre-discovered Areas . | . . . . Known Exits Taken 1 | . . 1 . Unknown Exits Taken 2 | 1 1 . . Scrap Searched . | . . . . Spaces Dug . | . . . . Terrain Destroyed . | . . . . Melee . | . . . . Projectile . | . . . . AOE . | . . . . Terrain Rammed . | . . . . Walls Destroyed . | . . . . Machines Disabled . | . . . . Actions | -11 -10 -10 -9 --------- Run | Yrd Mat Min Mat Total 917 | 100 235 155 427 Wait 2 | . 2 . . Move 736 | 79 161 151 345 Hop . | . . . . Pick Up 34 | 10 12 4 8 Fast Attach . | . . . . Attach 23 | 6 5 . 12 Detach 3 | . . . 3 Swap 2 | . . . 2 Drop 6 | . 1 . 5 Fire 103 | 5 49 . 49 Melee . | . . . . Ram 6 | . 5 . 1 Kick 2 | . . . 2 Crush . | . . . . Escape Stasis . | . . . . Rewire . | . . . . Trap . | . . . . Miscellaneous . | . . . . Route ------- -11/Scrapyard -10/Materials (discovered 4 exits: Mat x3 / *Min) -10/Mines -9/Materials (discovered 1 exit: Min) History --------- Turn | Location | Event 2 | -11/Scrapyard | Met Revision 17 56 | -11/Scrapyard | Discovered new exit (range 8) 86 | -11/Scrapyard | Entered Materials 93 | -10/Materials | Identified exit to Materials 263 | -10/Materials | Core integrity fell below 50% 301 | -10/Materials | Lost 3 parts (1p1n1w) 313 | -10/Materials | Core integrity fell below 20% 343 | -10/Materials | Build established: Mutant 376 | -10/Materials | Discovered new exit (range 12) 389 | -10/Materials | Entered Mines 432 | -10/Mines | Learned 8 Materials zone layouts 442 | -10/Mines | Found a hidden stash of uninstalled traps 512 | -10/Mines | Discovered exit to Materials (range 16) 537 | -10/Mines | Entered Materials 537 | -9/Materials | Evolved 2 slots: Utility x1, Weapon x1 538 | -9/Materials | Identified exit to Mines 757 | -9/Materials | Lost 6 parts (1p2n1u2w) 1060 | -9/Materials | Destroyed 7 combat bots 1183 | -9/Materials | Core integrity fell below 50% 1229 | -9/Materials | Core integrity fell below 20% 1237 | -9/Materials | Destroyed by Y-45 Defender with Beam Rifle Last Messages --------------- K-01 Serf collects debris. ALERT: Hostiles spotted, dispatching reinforcements to Terminal M007. W-16 Scout sends out distress signal. U-05 Engineer suffers critical hit (Burn). R-06 Scavenger collects Wheel. R-06 Scavenger collects Flight Unit. R-06 Scavenger collects Lgt. Ion Engine. Sml. Laser destroyed. Aluminum Leg destroyed. Critical hit (Burn: +37). Shotgun destroyed. Aluminum Leg destroyed. Imp. Ion Engine destroyed. Critical hit (Burn: +37). Particle Gun destroyed. M-13 Machinist repairs Y-45 Defender. Aluminum Leg destroyed. Critical hit (Burn: +37). Slammed into Y-45 Defender. Map ----- +----------------------------------------------------+ | ???????????????????????????????????????? | | ???????????????????????????????????????? | | ???????????????????????????????????????? | | ???????????????????????????????????????? | | ???????????????????????????????????????? | | ???????????????????????????????????????? | | ???????????????????????????????????????? | | ???????????????????????????????????????? | | ???????????????????????????????????????? | | ???????????????????????????????????????? | | ???????????????????????????????????????? | | ???????????????????????????????????????? | | ???????????????????????????????????????? | | ???????????????????????????????????????? | | ????????????????????????????????? ????? | | ????????????????????????????????? ????? | | ????????????????????????????????? ????? | | ??????????????????######???????##/##???? | | ??????????????????# #??????# ????? | | ??????????????????# T #??????# | | ??????????????????# ! #?###### | | ??????????????????# #? # ## | | ##############????# #? # ####+# | | # # ###### #? + # " | | # # # #?"T" # # " | | # """ + @Y + #?""" # # | | # """ # Y # #? # # | | # """= # ####+############# # | | # =! [!### ###??# = % =%% + # | | ####%###?# #????# """ """%%#% # | | ???###???# #????# """"""""% # # | | ?????????# #????# """""[=# # | | ?????????# #????# =*# #### # | | ?????????# #????# %% # ###### | | ?????????# #????#########+##### # | | ?????????# #????????????# #???# # | | ########## #????????????# #???# # | | # # #????????????# #???# # | | # """ # #????????????# #???# # | | # """ # ###??????????# #???# # | | # """ # #??????????# ##### ####+# | | # +% #??????????# % | | # """ # #??????????# * | | # """ # #??????????# | | # """ # #??????????#####+########## | | # # #???????????# #?# | | ########## ####????????# """ #?# | | # # !##???????# """"" ### | | # T # !#???????# """"" # # | | # # !#???????# """"" ### | +----------------------------------------------------+ Best States ------------- Heat Dissipation 52 Energy Generation 12 Energy Capacity 265 Matter Stores 300 Matter Capacity 300 Sight Range 16 Terrain Scan Density 10 Evasion (%) 50 Targeting Accuracy 6 Item Schematics ----------------- None Robot Schematics ------------------ None Fabricated ------------ Nothing Alien Tech Used ----------------- None Achievements -------------- None Challenges ------------ None Game ------ Seed IntegrityBarrageMatrix Manual? 0 Play Time 00:11:48 Cumulative 1.4 hours Start 2024.06.16 @ 01:51:40 End 2024.06.16 @ 02:02:23 Sessions 1 Manual Loads 0 Difficulty Rogue Special Mode None Game No. 3 Rogue 3 Adventurer 0 Explorer 0 Win Type - Total 0 Types 0/0/0/0/0/0/0/0/0 Lore% 2 Gallery% 6 Achievement% 5 Wizard Run 0 Options --------- Layout 1 ASCII 0 Keyboard 0 Movement Arrows Keybinds 0 Fullscreen 1 Font 24/Smallcaps Map View 50x35 Zoom Use 0% Tactical HUD 0 Map Filters NONE Filters NONE Steam 0 RUN: d1b4d95d-7dd4-4e27-9e2e-08a7d65108da